[Event "*** Titled Tuesday Blitz"]
[Site "Chess.com"]
[Date "2020.05.12"]
[Round "10"]
[White "Playgood28"]
[Black "Future2700"]
[Result "0-1"]
[WhiteElo "2265"]
[BlackElo "2435"]
[TimeControl "180+1"]
[EndTime "11:54:17 PDT"]
[Termination "Future2700 won by resignation"]

1. d4 {[%clk 0:03:00.9]} 1... Nf6 {[%clk 0:02:58.8]} 2. c4 {[%clk 0:03:00.7]}
2... e6 {[%clk 0:02:58.8]} 3. Nc3 {[%clk 0:03:00.4]} 3... Bb4 {[%clk 0:02:58.2]}
4. Qc2 {[%clk 0:03:00.2]} 4... d5 {[%clk 0:02:58.4]} 5. e3 {[%clk 0:02:56.4]}
5... O-O {[%clk 0:02:56.8]} 6. a3 {[%clk 0:02:53.8]} 6... Bxc3+ {[%clk
0:02:56.3]} 7. Qxc3 {[%clk 0:02:53.7]} 7... b6 {[%clk 0:02:48.1]} 8. Nf3 {[%clk
0:02:52.7]} 8... Bb7 {[%clk 0:02:38.7]} 9. b4 {[%clk 0:02:52.1]} 9... dxc4
{[%clk 0:02:38.7]} 10. Bxc4 {[%clk 0:02:50.8]} 10... a5 {[%clk 0:02:33.4]} 11.
Bb2 {[%clk 0:02:49.6]} 11... axb4 {[%clk 0:02:33.1]} 12. axb4 {[%clk 0:02:49.3]}
12... Rxa1+ {[%clk 0:02:33.6]} 13. Bxa1 {[%clk 0:02:49.3]} 13... Bxf3 {[%clk
0:02:24.7]} 14. gxf3 {[%clk 0:02:47.2]} 14... Nbd7 {[%clk 0:02:24.4]} 15. Rg1
{[%clk 0:02:31.6]} 15... g6 {[%clk 0:02:23.5]} 16. d5 {[%clk 0:02:27.4]} 16...
exd5 {[%clk 0:02:16.9]} 17. Bxd5 {[%clk 0:02:25.3]} 17... Qe7 {[%clk 0:02:04.3]}
18. f4 {[%clk 0:02:19.3]} 18... c5 {[%clk 0:01:59.1]} 19. bxc5 {[%clk
0:02:11.9]} 19... Qxc5 {[%clk 0:01:57.8]} 20. Qxc5 {[%clk 0:02:06]} 20... bxc5
{[%clk 0:01:58.7]} 21. Bc4 {[%clk 0:01:40]} 21... Nb6 {[%clk 0:01:56.8]} 22.
Bxf6 {[%clk 0:01:30.8]} 22... Nxc4 {[%clk 0:01:56.6]} 23. Ke2 {[%clk 0:01:30.8]}
23... Rc8 {[%clk 0:01:52.3]} 24. f5 {[%clk 0:01:23.6]} 24... Kf8 {[%clk
0:01:51.9]} 25. fxg6 {[%clk 0:01:17.8]} 25... hxg6 {[%clk 0:01:52.8]} 26. Rg4
{[%clk 0:01:14.7]} 26... Nd6 {[%clk 0:01:49.7]} 27. h4 {[%clk 0:01:02.5]} 27...
Ke8 {[%clk 0:01:49.1]} 28. Be5 {[%clk 0:00:56.6]} 28... Ke7 {[%clk 0:01:47.1]}
29. Ra4 {[%clk 0:00:46]} 29... Nf5 {[%clk 0:01:41.6]} 30. Bf4 {[%clk 0:00:37.4]}
30... Rc6 {[%clk 0:01:26]} 31. Kd3 {[%clk 0:00:35.5]} 31... Ke6 {[%clk
0:01:25.2]} 32. Kc4 {[%clk 0:00:32.6]} 32... Nxh4 {[%clk 0:01:21.5]} 33. Ra5
{[%clk 0:00:31.6]} 33... Nf3 {[%clk 0:01:14.2]} 34. Rxc5 {[%clk 0:00:30.1]}
34... Nd2+ {[%clk 0:01:14.3]} 35. Kb4 {[%clk 0:00:29.7]} 35... Rxc5 {[%clk
0:01:14.7]} 36. Kxc5 {[%clk 0:00:28.9]} 36... Ne4+ {[%clk 0:01:15.6]} 37. Kd4
{[%clk 0:00:28.3]} 37... Nxf2 {[%clk 0:01:16.5]} 38. Bg3 {[%clk 0:00:25.8]}
38... Ng4 {[%clk 0:01:12.2]} 39. Bb8 {[%clk 0:00:23.3]} 39... Kf5 {[%clk
0:01:05.5]} 40. e4+ {[%clk 0:00:21.5]} 40... Ke6 {[%clk 0:01:02.4]} 41. Bc7
{[%clk 0:00:18.8]} 41... Nf6 {[%clk 0:00:59.9]} 42. Ke3 {[%clk 0:00:17.7]} 42...
Nh5 {[%clk 0:00:57.1]} 43. Kf3 {[%clk 0:00:16.9]} 43... Kf6 {[%clk 0:00:54.7]}
44. Bd8+ {[%clk 0:00:16.4]} 44... Ke5 {[%clk 0:00:53.6]} 45. Bc7+ {[%clk
0:00:16.6]} 45... Ke6 {[%clk 0:00:52.2]} 46. Bb8 {[%clk 0:00:15.9]} 46... Kf6
{[%clk 0:00:47.2]} 47. Bc7 {[%clk 0:00:15.2]} 47... Kg5 {[%clk 0:00:47.8]} 48.
Bd8+ {[%clk 0:00:14.8]} 48... Kh6 {[%clk 0:00:40.2]} 49. Kg4 {[%clk 0:00:14.7]}
49... Ng7 {[%clk 0:00:38.9]} 50. Bf6 {[%clk 0:00:13.5]} 50... Ne6 {[%clk
0:00:38.7]} 51. Kf3 {[%clk 0:00:12.5]} 51... Kh5 {[%clk 0:00:38.9]} 52. Kg3
{[%clk 0:00:11.8]} 52... g5 {[%clk 0:00:35.5]} 53. Kf3 {[%clk 0:00:10.8]} 53...
g4+ {[%clk 0:00:35.6]} 54. Kg3 {[%clk 0:00:10.7]} 54... Nc5 {[%clk 0:00:35.3]}
55. e5 {[%clk 0:00:09.5]} 55... Ne4+ {[%clk 0:00:34.6]} 56. Kf4 {[%clk
0:00:09.4]} 56... Nxf6 {[%clk 0:00:34.2]} 57. exf6 {[%clk 0:00:09.3]} 57... Kh4
{[%clk 0:00:33]} 58. Ke5 {[%clk 0:00:08.1]} 58... g3 {[%clk 0:00:33.2]} 59. Kd6
{[%clk 0:00:09]} 59... g2 {[%clk 0:00:34.1]} 60. Ke7 {[%clk 0:00:09.1]} 60...
g1=Q {[%clk 0:00:34.6]} 61. Kxf7 {[%clk 0:00:09.3]} 61... Kg5 {[%clk 0:00:34.7]}
0-1

[Event "*** Titled Tuesday Blitz"]
[Site "Chess.com"]
[Date "2020.05.12"]
[Round "10"]
[White "snowlord"]
[Black "IMAghasiyevKamal"]
[Result "1-0"]
[WhiteElo "2741"]
[BlackElo "2538"]
[TimeControl "180+1"]
[EndTime "11:54:18 PDT"]
[Termination "snowlord won by resignation"]

1. e4 {[%clk 0:03:00.7]} 1... e5 {[%clk 0:02:59.3]} 2. Nf3 {[%clk 0:02:58.3]}
2... Nc6 {[%clk 0:02:58.5]} 3. Bb5 {[%clk 0:02:53.5]} 3... a6 {[%clk 0:02:57.6]}
4. Ba4 {[%clk 0:02:53.3]} 4... Nf6 {[%clk 0:02:57.5]} 5. d3 {[%clk 0:02:53.3]}
5... b5 {[%clk 0:02:56]} 6. Bb3 {[%clk 0:02:53.6]} 6... Be7 {[%clk 0:02:56.2]}
7. O-O {[%clk 0:02:53.2]} 7... d6 {[%clk 0:02:55.4]} 8. a3 {[%clk 0:02:48.9]}
8... O-O {[%clk 0:02:52.5]} 9. Nc3 {[%clk 0:02:49.4]} 9... Be6 {[%clk
0:02:50.9]} 10. Bg5 {[%clk 0:02:45.8]} 10... Bxb3 {[%clk 0:02:36.5]} 11. cxb3
{[%clk 0:02:45.5]} 11... Nd7 {[%clk 0:02:36.5]} 12. Be3 {[%clk 0:02:45]} 12...
Re8 {[%clk 0:02:17.6]} 13. Rc1 {[%clk 0:02:44.6]} 13... Na5 {[%clk 0:01:50.5]}
14. b4 {[%clk 0:02:42.9]} 14... Nb7 {[%clk 0:01:50.6]} 15. Nd5 {[%clk 0:02:42]}
15... c5 {[%clk 0:01:50.7]} 16. bxc5 {[%clk 0:02:37.6]} 16... dxc5 {[%clk
0:01:49.4]} 17. b4 {[%clk 0:02:38.2]} 17... Bf8 {[%clk 0:01:45.1]} 18. Bg5
{[%clk 0:02:33.8]} 18... f6 {[%clk 0:01:41.8]} 19. Qb3 {[%clk 0:02:31.8]} 19...
Kh8 {[%clk 0:01:41.4]} 20. Be3 {[%clk 0:02:30.9]} 20... Rc8 {[%clk 0:01:32.3]}
21. a4 {[%clk 0:02:26.6]} 21... Nb6 {[%clk 0:01:25.3]} 22. axb5 {[%clk
0:02:19.1]} 22... axb5 {[%clk 0:01:21.3]} 23. Nxb6 {[%clk 0:01:54.5]} 23... Qxb6
{[%clk 0:01:20]} 24. Rb1 {[%clk 0:01:55.1]} 24... Red8 {[%clk 0:00:57.4]} 25.
Rfd1 {[%clk 0:01:50.8]} 25... Qa7 {[%clk 0:00:46.6]} 26. h4 {[%clk 0:01:17.2]}
26... Qa4 {[%clk 0:00:27.4]} 27. bxc5 {[%clk 0:00:48.7]} 27... Nxc5 {[%clk
0:00:27.2]} 28. Qxb5 {[%clk 0:00:25.2]} 28... Qxb5 {[%clk 0:00:20.3]} 29. Rxb5
{[%clk 0:00:26.1]} 29... Rxd3 {[%clk 0:00:16.6]} 30. Rc1 {[%clk 0:00:22.9]}
30... Rxe3 {[%clk 0:00:13.1]} 31. fxe3 {[%clk 0:00:22.6]} 31... g6 {[%clk
0:00:11.7]} 32. Kf1 {[%clk 0:00:20.5]} 32... Rc7 {[%clk 0:00:11]} 33. Ne1 {[%clk
0:00:19.1]} 33... Bd6 {[%clk 0:00:08.4]} 34. Rb8+ {[%clk 0:00:14.1]} 34... Kg7
{[%clk 0:00:07.9]} 35. Nd3 {[%clk 0:00:14.5]} 35... Nxd3 {[%clk 0:00:07.2]} 36.
Rxc7+ {[%clk 0:00:14.2]} 36... Bxc7 {[%clk 0:00:07.5]} 37. Rb7 {[%clk
0:00:15.1]} 37... Kh6 {[%clk 0:00:05.8]} 38. Rxc7 {[%clk 0:00:15.8]} 38... f5
{[%clk 0:00:05.9]} 39. exf5 {[%clk 0:00:14.8]} 39... gxf5 {[%clk 0:00:06.8]} 40.
Ke2 {[%clk 0:00:13.9]} 40... e4 {[%clk 0:00:07]} 41. Re7 {[%clk 0:00:11.2]}
41... Kh5 {[%clk 0:00:05.5]} 42. Rxh7+ {[%clk 0:00:10.7]} 42... Kg4 {[%clk
0:00:06]} 43. h5 {[%clk 0:00:10.4]} 43... f4 {[%clk 0:00:06.3]} 44. exf4 {[%clk
0:00:09.8]} 44... Nxf4+ {[%clk 0:00:06.5]} 45. Kf2 {[%clk 0:00:09.6]} 45... Nxh5
{[%clk 0:00:06.1]} 46. Rh8 {[%clk 0:00:09.3]} 46... Kf4 {[%clk 0:00:03.6]} 47.
Rxh5 {[%clk 0:00:09]} 1-0

[Event "*** Titled Tuesday Blitz"]
[Site "Chess.com"]
[Date "2020.05.12"]
[Round "10"]
[White "aquiles88"]
[Black "mariangie523"]
[Result "0-1"]
[WhiteElo "2222"]
[BlackElo "2082"]
[TimeControl "180+1"]
[EndTime "11:54:19 PDT"]
[Termination "mariangie523 won by resignation"]

1. e4 {[%clk 0:02:59.7]} 1... c5 {[%clk 0:02:59.9]} 2. Nf3 {[%clk 0:02:59.4]}
2... d6 {[%clk 0:03:00.1]} 3. d4 {[%clk 0:02:57.4]} 3... cxd4 {[%clk 0:03:00.5]}
4. Nxd4 {[%clk 0:02:58.3]} 4... Nf6 {[%clk 0:03:00.7]} 5. Nc3 {[%clk 0:02:58.2]}
5... g6 {[%clk 0:03:00.8]} 6. f4 {[%clk 0:02:53.2]} 6... Bg7 {[%clk 0:02:58.7]}
7. e5 {[%clk 0:02:49]} 7... dxe5 {[%clk 0:02:57.6]} 8. fxe5 {[%clk 0:02:43]}
8... Nd5 {[%clk 0:02:57.8]} 9. Bb5+ {[%clk 0:02:36.6]} 9... Kf8 {[%clk
0:02:55.8]} 10. O-O {[%clk 0:01:53.9]} 10... Nc6 {[%clk 0:02:30.3]} 11. Nxc6
{[%clk 0:01:47.1]} 11... bxc6 {[%clk 0:02:24.7]} 12. Bxc6 {[%clk 0:01:24]} 12...
Qb6+ {[%clk 0:02:16.1]} 13. Kh1 {[%clk 0:01:24.3]} 13... Qxc6 {[%clk 0:02:10.7]}
14. Qxd5 {[%clk 0:01:21.7]} 14... Qxd5 {[%clk 0:02:09]} 15. Nxd5 {[%clk
0:01:21.5]} 15... Bb7 {[%clk 0:02:09.9]} 16. c4 {[%clk 0:01:13.1]} 16... Bxd5
{[%clk 0:02:04.6]} 17. cxd5 {[%clk 0:01:11.6]} 17... Bxe5 {[%clk 0:02:04.9]} 18.
Bh6+ {[%clk 0:01:10.9]} 18... Bg7 {[%clk 0:01:59.7]} 19. Bxg7+ {[%clk
0:01:10.6]} 19... Kxg7 {[%clk 0:01:59.8]} 20. Rae1 {[%clk 0:01:10.6]} 20... Rhe8
{[%clk 0:01:53]} 21. Re5 {[%clk 0:01:09.5]} 21... Rad8 {[%clk 0:01:48.9]} 22.
Rfe1 {[%clk 0:01:08.5]} 22... Kf8 {[%clk 0:01:31.4]} 23. R1e3 {[%clk 0:01:07.6]}
23... f6 {[%clk 0:01:27]} 24. Re6 {[%clk 0:00:51.6]} 24... Rxd5 {[%clk
0:01:25.9]} 25. h3 {[%clk 0:00:51.9]} 25... Kf7 {[%clk 0:01:20.6]} 26. Ra6
{[%clk 0:00:50.5]} 26... Rd7 {[%clk 0:01:17.2]} 27. Rea3 {[%clk 0:00:47.4]}
27... Rb8 {[%clk 0:01:06.3]} 28. b3 {[%clk 0:00:45.1]} 28... Rbb7 {[%clk
0:01:01.8]} 29. R3a4 {[%clk 0:00:44.7]} 29... e5 {[%clk 0:00:56.4]} 30. Kg1
{[%clk 0:00:44.2]} 30... Re7 {[%clk 0:00:50.4]} 31. Kf2 {[%clk 0:00:42.8]} 31...
Rbd7 {[%clk 0:00:46.1]} 32. Ke3 {[%clk 0:00:41.1]} 32... f5 {[%clk 0:00:40.6]}
33. g3 {[%clk 0:00:32.9]} 33... e4 {[%clk 0:00:37.2]} 34. g4 {[%clk 0:00:27.7]}
34... f4+ {[%clk 0:00:23.4]} 35. Kxf4 {[%clk 0:00:26.4]} 35... e3 {[%clk
0:00:20.9]} 36. Re4 {[%clk 0:00:20.3]} 36... Rxe4+ {[%clk 0:00:16.1]} 37. Kxe4
{[%clk 0:00:18.3]} 37... e2 {[%clk 0:00:15.5]} 38. g5 {[%clk 0:00:09.5]} 38...
e1=Q+ {[%clk 0:00:14.9]} 39. Kf4 {[%clk 0:00:10.4]} 39... Rd4+ {[%clk
0:00:12.6]} 40. Kf3 {[%clk 0:00:07]} 40... Qc3+ {[%clk 0:00:11.3]} 41. Ke2
{[%clk 0:00:06.1]} 41... Rd2+ {[%clk 0:00:11.5]} 0-1

[Event "*** Titled Tuesday Blitz"]
[Site "Chess.com"]
[Date "2020.05.12"]
[Round "10"]
[White "TregubovP"]
[Black "sopo-tereladze"]
[Result "1-0"]
[WhiteElo "2558"]
[BlackElo "2410"]
[TimeControl "180+1"]
[EndTime "11:54:21 PDT"]
[Termination "TregubovP won by resignation"]

1. e4 {[%clk 0:03:00.9]} 1... e5 {[%clk 0:02:58.9]} 2. Nf3 {[%clk 0:03:00.3]}
2... Nc6 {[%clk 0:02:58]} 3. Bb5 {[%clk 0:03:00.6]} 3... a6 {[%clk 0:02:57.1]}
4. Ba4 {[%clk 0:03:00.4]} 4... Nf6 {[%clk 0:02:56.3]} 5. d4 {[%clk 0:02:58.6]}
5... exd4 {[%clk 0:02:50.8]} 6. O-O {[%clk 0:02:57.9]} 6... Be7 {[%clk
0:02:47.4]} 7. e5 {[%clk 0:02:57.8]} 7... Ne4 {[%clk 0:02:46.1]} 8. Nxd4 {[%clk
0:02:53.2]} 8... O-O {[%clk 0:02:41.1]} 9. Nf5 {[%clk 0:02:41.8]} 9... d5 {[%clk
0:02:40]} 10. Nxe7+ {[%clk 0:02:37.4]} 10... Nxe7 {[%clk 0:02:40.9]} 11. c3
{[%clk 0:02:37.2]} 11... Nc5 {[%clk 0:02:27.3]} 12. Bc2 {[%clk 0:02:36]} 12...
Re8 {[%clk 0:02:24.8]} 13. Be3 {[%clk 0:02:28.5]} 13... Ne6 {[%clk 0:02:20.4]}
14. f4 {[%clk 0:02:27.4]} 14... d4 {[%clk 0:02:20]} 15. Bxd4 {[%clk 0:02:22.4]}
15... Nxd4 {[%clk 0:02:11.6]} 16. Qxd4 {[%clk 0:02:04.7]} 16... Qxd4+ {[%clk
0:02:10.1]} 17. cxd4 {[%clk 0:02:04.8]} 17... Be6 {[%clk 0:02:01.9]} 18. Nc3
{[%clk 0:02:02.1]} 18... Bc4 {[%clk 0:01:57.2]} 19. Rfd1 {[%clk 0:01:56.8]}
19... Red8 {[%clk 0:01:56.9]} 20. Be4 {[%clk 0:01:55.1]} 20... c6 {[%clk
0:01:55]} 21. f5 {[%clk 0:01:51]} 21... Bd5 {[%clk 0:01:54.8]} 22. f6 {[%clk
0:01:46]} 22... Ng6 {[%clk 0:01:50.9]} 23. fxg7 {[%clk 0:01:26.8]} 23... Kxg7
{[%clk 0:01:46.3]} 24. Nxd5 {[%clk 0:01:22.1]} 24... cxd5 {[%clk 0:01:47.2]} 25.
Bf5 {[%clk 0:01:22.4]} 25... f6 {[%clk 0:01:41.4]} 26. exf6+ {[%clk 0:01:20]}
26... Kxf6 {[%clk 0:01:42.3]} 27. Rf1 {[%clk 0:01:18.1]} 27... Kg7 {[%clk
0:01:38.7]} 28. Rac1 {[%clk 0:01:16.7]} 28... Rf8 {[%clk 0:01:31]} 29. Rc7+
{[%clk 0:01:12.2]} 29... Kh6 {[%clk 0:01:29.7]} 30. Rxb7 {[%clk 0:01:05.8]}
30... Rab8 {[%clk 0:01:29.3]} 31. Rxb8 {[%clk 0:01:02.3]} 31... Rxb8 {[%clk
0:01:30.2]} 32. b3 {[%clk 0:01:01.6]} 32... Rb4 {[%clk 0:01:27.8]} 33. Rd1
{[%clk 0:01:01.1]} 33... a5 {[%clk 0:01:25.5]} 34. Kf2 {[%clk 0:00:52.5]} 34...
Ne7 {[%clk 0:01:21.4]} 35. Bc2 {[%clk 0:00:47.9]} 35... Nc6 {[%clk 0:01:20.4]}
36. Ke3 {[%clk 0:00:47.2]} 36... Rb8 {[%clk 0:01:16.7]} 37. Rf1 {[%clk
0:00:41.5]} 37... Re8+ {[%clk 0:01:13.3]} 38. Kd3 {[%clk 0:00:40.2]} 38... Nb4+
{[%clk 0:01:09.3]} 39. Kd2 {[%clk 0:00:40.5]} 39... Nxc2 {[%clk 0:01:07.4]} 40.
Kxc2 {[%clk 0:00:40.7]} 40... Re2+ {[%clk 0:01:07.6]} 41. Kc3 {[%clk 0:00:40.6]}
41... Rxa2 {[%clk 0:01:05.4]} 42. Rf6+ {[%clk 0:00:35]} 42... Kg7 {[%clk
0:00:59.3]} 43. Rd6 {[%clk 0:00:30.2]} 43... Rxg2 {[%clk 0:00:57.5]} 44. Rxd5
{[%clk 0:00:28.5]} 44... Rxh2 {[%clk 0:00:57.7]} 45. Rxa5 {[%clk 0:00:28.5]}
45... h5 {[%clk 0:00:53]} 46. b4 {[%clk 0:00:26.5]} 46... h4 {[%clk 0:00:50.2]}
47. b5 {[%clk 0:00:20]} 47... h3 {[%clk 0:00:49.8]} 48. b6 {[%clk 0:00:18.1]}
48... Rh1 {[%clk 0:00:46.7]} 49. Rh5 {[%clk 0:00:14.2]} 49... h2 {[%clk
0:00:40]} 50. Kb2 {[%clk 0:00:13.3]} 50... Rd1 {[%clk 0:00:24.9]} 51. Rxh2
{[%clk 0:00:12.2]} 51... Rxd4 {[%clk 0:00:24.4]} 52. Kc3 {[%clk 0:00:12.5]}
52... Rd8 {[%clk 0:00:20.6]} 53. Kc4 {[%clk 0:00:11.6]} 53... Kf6 {[%clk
0:00:20.1]} 54. Re2 {[%clk 0:00:12]} 1-0

[Event "*** Titled Tuesday Blitz"]
[Site "Chess.com"]
[Date "2020.05.12"]
[Round "10"]
[White "davigator"]
[Black "Sergey85Rodchenkov"]
[Result "0-1"]
[WhiteElo "2379"]
[BlackElo "2510"]
[TimeControl "180+1"]
[EndTime "11:54:21 PDT"]
[Termination "Sergey85Rodchenkov won by resignation"]

1. e4 {[%clk 0:03:00.9]} 1... c5 {[%clk 0:02:54.1]} 2. Nf3 {[%clk 0:03:00.7]}
2... e6 {[%clk 0:02:53.9]} 3. d4 {[%clk 0:02:57.6]} 3... cxd4 {[%clk 0:02:53.5]}
4. Nxd4 {[%clk 0:02:58.1]} 4... a6 {[%clk 0:02:54.2]} 5. Bd3 {[%clk 0:02:57.1]}
5... Qc7 {[%clk 0:02:54.4]} 6. O-O {[%clk 0:02:55.6]} 6... Nf6 {[%clk
0:02:53.9]} 7. Qe2 {[%clk 0:02:54.9]} 7... d6 {[%clk 0:02:53.5]} 8. Nc3 {[%clk
0:02:48.1]} 8... Be7 {[%clk 0:02:51.9]} 9. Bd2 {[%clk 0:02:46.9]} 9... Nbd7
{[%clk 0:02:51.7]} 10. Rae1 {[%clk 0:02:46.6]} 10... b6 {[%clk 0:02:51.1]} 11.
Kh1 {[%clk 0:02:46.2]} 11... Bb7 {[%clk 0:02:51.3]} 12. f4 {[%clk 0:02:46.2]}
12... Nc5 {[%clk 0:02:32.9]} 13. e5 {[%clk 0:02:31.9]} 13... dxe5 {[%clk
0:02:27.4]} 14. fxe5 {[%clk 0:02:31.9]} 14... Nfd7 {[%clk 0:02:27.7]} 15. Qh5
{[%clk 0:02:28.4]} 15... g6 {[%clk 0:02:20.4]} 16. Qe2 {[%clk 0:02:22.8]} 16...
Nxd3 {[%clk 0:02:02.3]} 17. cxd3 {[%clk 0:02:20.6]} 17... O-O {[%clk 0:02:02.4]}
18. Bh6 {[%clk 0:02:18.4]} 18... Bh4 {[%clk 0:01:48.7]} 19. Bxf8 {[%clk
0:02:11.5]} 19... Rxf8 {[%clk 0:01:49.6]} 20. Rc1 {[%clk 0:02:00]} 20... Qxe5
{[%clk 0:01:49]} 21. Nf3 {[%clk 0:01:59.7]} 21... Qxe2 {[%clk 0:01:41.3]} 22.
Nxe2 {[%clk 0:01:59.2]} 22... Bd8 {[%clk 0:01:38.8]} 23. Ned4 {[%clk 0:01:53.1]}
23... Bd5 {[%clk 0:01:38]} 24. b3 {[%clk 0:01:52.4]} 24... Bf6 {[%clk
0:01:34.8]} 25. Rc7 {[%clk 0:01:51]} 25... Nc5 {[%clk 0:01:30.7]} 26. Rd1 {[%clk
0:01:47.4]} 26... h5 {[%clk 0:01:19.8]} 27. h3 {[%clk 0:01:44.8]} 27... g5
{[%clk 0:01:17.4]} 28. b4 {[%clk 0:01:25.6]} 28... Na4 {[%clk 0:01:15.1]} 29.
Ra7 {[%clk 0:01:25.4]} 29... g4 {[%clk 0:01:08.7]} 30. Rxa6 {[%clk 0:00:47.6]}
30... gxf3 {[%clk 0:01:02.6]} 31. Nxf3 {[%clk 0:00:43.3]} 31... b5 {[%clk
0:00:59.7]} 32. d4 {[%clk 0:00:40.8]} 32... Rc8 {[%clk 0:00:55.6]} 33. Rf1
{[%clk 0:00:37.8]} 33... Rc2 {[%clk 0:00:54.2]} 34. Ra7 {[%clk 0:00:36.6]} 34...
Nc3 {[%clk 0:00:43.4]} 35. Ne1 {[%clk 0:00:23.6]} 35... Rc1 {[%clk 0:00:28.5]}
36. Rxf6 {[%clk 0:00:23.6]} 36... Rxe1+ {[%clk 0:00:28.4]} 37. Kh2 {[%clk
0:00:24.2]} 37... Re2 {[%clk 0:00:28.7]} 38. Kg1 {[%clk 0:00:16.7]} 38... Rxg2+
{[%clk 0:00:26.8]} 39. Kf1 {[%clk 0:00:17.3]} 39... Rg7 {[%clk 0:00:26.3]} 40.
a3 {[%clk 0:00:16.3]} 40... Ne4 {[%clk 0:00:25.8]} 41. Rf4 {[%clk 0:00:15.9]}
41... Ng5 {[%clk 0:00:19.6]} 42. h4 {[%clk 0:00:13.6]} 42... Nf3 {[%clk
0:00:19.1]} 43. Kf2 {[%clk 0:00:12.9]} 43... Nh2 {[%clk 0:00:17.8]} 44. Ke3
{[%clk 0:00:11.2]} 44... Ng4+ {[%clk 0:00:17.8]} 45. Kd2 {[%clk 0:00:10.8]}
45... Bc4 {[%clk 0:00:18.2]} 46. Rf2 {[%clk 0:00:09]} 46... Nxf2 {[%clk
0:00:15.6]} 47. Ke3 {[%clk 0:00:08.5]} 47... Ng4+ {[%clk 0:00:15.7]} 48. Kf4
{[%clk 0:00:08.5]} 48... Kh7 {[%clk 0:00:16.1]} 49. Rc7 {[%clk 0:00:07.1]} 49...
Kg6 {[%clk 0:00:16.3]} 50. a4 {[%clk 0:00:06.8]} 50... f6 {[%clk 0:00:15.2]} 51.
a5 {[%clk 0:00:06.7]} 51... Rxc7 {[%clk 0:00:14]} 0-1

[Event "*** Titled Tuesday Blitz"]
[Site "Chess.com"]
[Date "2020.05.12"]
[Round "10"]
[White "grunbergmihai"]
[Black "WhiteKnight2612"]
[Result "0-1"]
[WhiteElo "2401"]
[BlackElo "2662"]
[TimeControl "180+1"]
[EndTime "11:54:23 PDT"]
[Termination "WhiteKnight2612 won by resignation"]

1. Nf3 {[%clk 0:03:00.9]} 1... e6 {[%clk 0:03:00.9]} 2. c4 {[%clk 0:02:53.1]}
2... d5 {[%clk 0:03:01.8]} 3. g3 {[%clk 0:02:53]} 3... Nf6 {[%clk 0:03:02.7]} 4.
Bg2 {[%clk 0:02:53.1]} 4... dxc4 {[%clk 0:03:03.6]} 5. O-O {[%clk 0:02:54]} 5...
Be7 {[%clk 0:03:03.9]} 6. Qa4+ {[%clk 0:02:53.1]} 6... c6 {[%clk 0:03:02.8]} 7.
Qxc4 {[%clk 0:02:52.2]} 7... O-O {[%clk 0:03:03.2]} 8. a4 {[%clk 0:02:51.7]}
8... Nbd7 {[%clk 0:03:00.1]} 9. d4 {[%clk 0:02:51.5]} 9... Rb8 {[%clk
0:02:59.1]} 10. Bf4 {[%clk 0:02:50.3]} 10... Ra8 {[%clk 0:02:57.9]} 11. Nc3
{[%clk 0:02:49.6]} 11... Nd5 {[%clk 0:02:58.2]} 12. e4 {[%clk 0:02:46.3]} 12...
Nxf4 {[%clk 0:02:57.2]} 13. gxf4 {[%clk 0:02:46.3]} 13... Nf6 {[%clk 0:02:57.4]}
14. Ne5 {[%clk 0:02:43.9]} 14... Nh5 {[%clk 0:02:53.3]} 15. Ne2 {[%clk
0:02:40.4]} 15... Bd6 {[%clk 0:02:49.2]} 16. Qc3 {[%clk 0:02:21.6]} 16... Qh4
{[%clk 0:02:45]} 17. Qh3 {[%clk 0:02:14.4]} 17... Qxh3 {[%clk 0:02:42.8]} 18.
Bxh3 {[%clk 0:02:14.1]} 18... f5 {[%clk 0:02:39.7]} 19. f3 {[%clk 0:02:09.9]}
19... g6 {[%clk 0:02:39.2]} 20. a5 {[%clk 0:01:58.4]} 20... Rb8 {[%clk
0:02:35.2]} 21. Rac1 {[%clk 0:01:51.6]} 21... a6 {[%clk 0:02:33.1]} 22. Bg2
{[%clk 0:01:35.7]} 22... Bb4 {[%clk 0:02:32.2]} 23. Nc4 {[%clk 0:01:31.9]} 23...
Bd7 {[%clk 0:02:32.4]} 24. Rcd1 {[%clk 0:01:18.5]} 24... c5 {[%clk 0:02:31.2]}
25. d5 {[%clk 0:01:16.1]} 25... Bb5 {[%clk 0:02:30.6]} 26. b3 {[%clk 0:01:15]}
26... exd5 {[%clk 0:02:29.3]} 27. Rxd5 {[%clk 0:01:12.4]} 27... Rbe8 {[%clk
0:02:25.1]} 28. e5 {[%clk 0:01:11.7]} 28... Bc6 {[%clk 0:01:57.2]} 29. Rd6
{[%clk 0:01:10.8]} 29... Ng7 {[%clk 0:01:57.2]} 30. Nc1 {[%clk 0:01:03.9]} 30...
Bc3 {[%clk 0:01:54.5]} 31. Ne2 {[%clk 0:01:01.9]} 31... Bb4 {[%clk 0:01:54.4]}
32. Nc1 {[%clk 0:01:01.8]} 32... Ne6 {[%clk 0:01:54.6]} 33. Nd3 {[%clk
0:01:00.8]} 33... Bc3 {[%clk 0:01:54.8]} 34. Kf2 {[%clk 0:00:57.9]} 34... Bd4+
{[%clk 0:01:49.9]} 35. Kg3 {[%clk 0:00:57.7]} 35... Nc7 {[%clk 0:01:49.9]} 36.
h4 {[%clk 0:00:52.1]} 36... Nb5 {[%clk 0:01:48.4]} 37. Rf6 {[%clk 0:00:45]}
37... Rxf6 {[%clk 0:01:46.6]} 38. exf6 {[%clk 0:00:45.9]} 38... Bxf6 {[%clk
0:01:46.2]} 39. Nxc5 {[%clk 0:00:44.9]} 39... Nd4 {[%clk 0:01:44]} 40. Rd1
{[%clk 0:00:41.9]} 40... Ne2+ {[%clk 0:01:43.4]} 41. Kh2 {[%clk 0:00:38.2]}
41... Nxf4 {[%clk 0:01:43.6]} 42. Nd7 {[%clk 0:00:30.2]} 42... Bxh4 {[%clk
0:01:40.5]} 43. Nde5 {[%clk 0:00:28.8]} 43... Bf6 {[%clk 0:01:36.5]} 44. Nxc6
{[%clk 0:00:28.4]} 44... bxc6 {[%clk 0:01:36.2]} 45. Rd6 {[%clk 0:00:27.5]}
45... Bg5 {[%clk 0:01:34.1]} 46. Bf1 {[%clk 0:00:26.7]} 46... Re1 {[%clk
0:01:33]} 47. Kg1 {[%clk 0:00:22.8]} 47... Nh3+ {[%clk 0:01:06.9]} 48. Kg2
{[%clk 0:00:22.2]} 48... Nf4+ {[%clk 0:01:06.4]} 49. Kg1 {[%clk 0:00:22.2]}
49... Ra1 {[%clk 0:00:59.5]} 50. Rxc6 {[%clk 0:00:21.5]} 50... Ne2+ {[%clk
0:00:59.5]} 51. Kf2 {[%clk 0:00:20.4]} 51... Nd4 {[%clk 0:00:58.6]} 52. Rxa6
{[%clk 0:00:19.7]} 52... Ra2+ {[%clk 0:00:58]} 53. Kg3 {[%clk 0:00:12.7]} 53...
Kg7 {[%clk 0:00:56.4]} 54. Rd6 {[%clk 0:00:09.1]} 54... Nxb3 {[%clk 0:00:55.3]}
55. a6 {[%clk 0:00:08.8]} 55... Nc5 {[%clk 0:00:53.8]} 56. Ne5 {[%clk
0:00:07.6]} 56... Ra4 {[%clk 0:00:52.3]} 57. Bb5 {[%clk 0:00:06.6]} 57... Bf4+
{[%clk 0:00:51.4]} 58. Kg2 {[%clk 0:00:06.3]} 58... Ra2+ {[%clk 0:00:50.6]} 59.
Kg1 {[%clk 0:00:05.4]} 59... Bxe5 {[%clk 0:00:50.3]} 60. Rd5 {[%clk 0:00:05.6]}
60... Bf4 {[%clk 0:00:50.1]} 61. Kf1 {[%clk 0:00:03.5]} 61... Nxa6 {[%clk
0:00:47.8]} 0-1